bitfinex-derivatives/quotes_SOLF0:USTF0_20250117
["timestamp","ask_amount","ask_price","bid_price","bid_amount"]
[1737081603114,4.6854,213.46,213.43,7.40005296]
[1737081603318,128.97968538,213.49,213.43,7.40005296]
[1737081604118,4.6858,213.44,213.43,7.40005296]
[1737081609119,4.686,213.43,213.39,4.6868]
[1737081609314,4.686,213.43,213.42,7.40005296]
[1737081609521,128.97968538,213.5,213.42,7.40005296]
[1737081609823,128.97968538,213.5,213.47,7.40005296]
[1737081610021,128.97968538,213.49,213.47,7.40005296]
[1737081610326,4.6849,213.48,213.47,7.40005296]
[1737081617826,130.75908538,213.57,213.47,12.08515296]
[1737081618027,5.04,213.56,213.5,7.40005296]
[1737081618227,12.44005296,213.56,213.5,7.40005296]
[1737081619035,7.40005296,213.56,213.5,7.40005296]
[1737081619232,4.6843,213.51,213.5,7.40005296]
[1737081624540,4.685,213.48,213.34,3.68500393]
[1737081624735,12.98090315,213.54,213.47,7.40005296]
[1737081625240,4.6849,213.48,213.47,7.40005296]
[1737081629735,4.6849,213.48,213.34,8.72500393]
[1737081629940,4.6853,213.47,213.34,8.72500393]
[1737081630141,5.04,213.56,213.46,7.40005296]
[1737081630340,5.04,213.56,213.49,7.40005296]
[1737081630539,5.04,213.56,213.51,7.40005296]
[1737081630745,7.35986654,213.57,213.51,7.40005296]
[1737081630941,6.8194,213.57,213.51,7.40005296]
[1737081631243,14.21945296,213.57,213.49,7.40005296]
[1737081631643,4.6845,213.5,213.49,7.40005296]
[1737081634347,4.6849,213.49,213.44,4.6858]
[1737081634547,4.6849,213.49,213.48,7.40005296]
[1737081639947,4.6852,213.47,213.46,7.40005296]
[1737081640546,4.6858,213.44,213.4,4.6866]
[1737081640743,5.04,213.48,213.34,3.68500393]
[1737081640947,7.40005296,213.47,213.4,7.40005296]
[1737081641248,4.6865,213.41,213.4,7.40005296]
[1737081641449,5.04,213.48,213.4,7.40005296]
[1737081641649,5.04,213.48,213.46,7.40005296]
[1737081642047,4.6852,213.47,213.46,7.40005296]
[1737081642552,134.01968538,213.54,213.46,7.40005296]
[1737081642848,134.01968538,213.54,213.48,7.40005296]
[1737081642849,4.6848,213.49,213.48,7.40005296]
[1737081646250,4.6845,213.51,213.48,7.40005296]
[1737081646451,4.6845,213.51,213.5,7.40005296]
[1737081650152,4.6841,213.52,213.5,7.40005296]
[1737081650653,5.04,213.54,213.5,7.40005296]
[1737081650854,4.6843,213.51,213.5,7.40005296]
[1737081651549,5.04,213.54,213.38,1.5305]
[1737081651751,4.6848,213.49,213.44,4.6858]
[1737081651952,18.01110598,213.54,213.38,1.5305]
[1737081652253,12.97110598,213.53,213.38,1.5305]
[1737081652448,7.40005296,213.51,213.38,1.5305]
[1737081652654,7.40005296,213.51,213.45,7.40005296]
[1737081653955,4.6854,213.46,213.45,7.40005296]
[1737081655451,4.6853,213.47,213.45,7.40005296]
[1737081655658,128.97968538,213.53,213.46,7.40005296]
[1737081655856,128.97968538,213.53,213.49,7.40005296]
[1737081656047,136.37973834,213.53,213.38,1.5305]
[1737081656251,12.9725506,213.52,213.45,7.40005296]
[1737081656458,20.37260356,213.53,213.47,7.40005296]
[1737081656952,128.97968538,213.52,213.49,7.40005296]
[1737081657751,128.97968538,213.53,213.49,7.40005296]
[1737081657955,128.97968538,213.53,213.47,7.40005296]
[1737081659055,4.6849,213.48,213.47,7.40005296]
[1737081661255,136.37973834,213.52,213.37,1.459]
[1737081661461,4.6865,213.42,213.37,6.1461]
[1737081661661,4.6865,213.42,213.41,7.40005296]
[1737081661863,136.37973834,213.49,213.41,7.40005296]
[1737081662054,4.686,213.44,213.43,7.40005296]
[1737081664463,4.6856,213.46,213.43,7.40005296]
[1737081664766,4.6856,213.46,213.45,7.40005296]
[1737081665969,4.6852,213.47,213.45,7.40005296]
[1737081666372,5.04,213.54,213.45,7.40005296]
[1737081666668,5.04,213.54,213.48,7.40005296]
[1737081667163,7.40005296,213.53,213.46,7.40005296]
[1737081668164,4.6853,213.47,213.46,7.40005296]
[1737081668666,4.6855,213.46,213.4,4.6867]
[1737081669869,4.6855,213.46,213.45,7.40005296]
[1737081670267,4.686,213.43,213.38,4.6869]
[1737081670464,4.686,213.43,213.42,7.40005296]
[1737081670970,4.6865,213.41,213.37,4.6873]
[1737081671166,14.80988454,213.53,213.35,1.5057]
[1737081671167,7.40983158,213.53,213.4,7.40005296]
[1737081671367,7.40005296,213.53,213.47,7.40005296]
[1737081671769,4.6849,213.48,213.47,7.40005296]
[1737081672071,12.99285159,213.52,213.45,7.40005296]
[1737081672368,7.40005296,213.51,213.45,7.40005296]
[1737081672568,4.6854,213.46,213.45,7.40005296]
[1737081681777,4.6854,213.46,213.36,2.9401]
[1737081681979,4.6854,213.46,213.45,7.40005296]
[1737081682779,128.97968538,213.56,213.45,7.40005296]
[1737081682979,128.97968538,213.56,213.42,1.5233]
[1737081683180,136.37973834,213.56,213.5,7.40005296]
[1737081683381,7.40005296,213.54,213.46,7.40005296]
[1737081684989,4.6854,213.46,213.44,7.40005296]
[1737081685285,4.6858,213.44,213.43,1.5428]
[1737081685491,4.6858,213.44,213.43,8.94285296]
[1737081685681,4.6858,213.44,213.43,1.5428]
[1737081685882,4.6858,213.44,213.43,8.94285296]
[1737081690386,4.6856,213.45,213.43,8.94285296]
[1737081690585,4.6856,213.45,213.44,7.40005296]
[1737081692484,12.42005296,213.5,213.36,1.4615]
[1737081692786,12.42005296,213.5,211.84,20.39693611]
[1737081692787,4.6867,213.4,213.39,7.40005296]
[1737081693389,4.6874,213.37,213.36,7.40005296]
[1737081693684,7.40005296,213.38,213.27,6.51710597]
[1737081693884,4.6884,213.32,213.31,7.40005296]
[1737081697993,4.6881,213.34,213.24,3.0269]
[1737081698296,7.40005296,213.38,213.3,7.40005296]
[1737081698594,4.6887,213.31,213.24,3.0269]
[1737081698793,4.6887,213.31,213.3,7.40005296]
[1737081699391,4.6887,213.31,213.24,3.0269]
[1737081699591,4.6887,213.31,213.3,7.40005296]
[1737081701285,5.04,213.36,213.04,51.09465024]
[1737081701486,4.5652,213.3,213.21,7.40005296]
[1737081701685,4.5652,213.3,213.23,7.40005296]
[1737081701892,5.04,213.29,213.23,7.40005296]
[1737081702292,4.6902,213.24,213.23,7.40005296]
[1737081702490,5.04,213.29,213.04,3.1001]
[1737081702795,7.40005296,213.28,213.19,7.40005296]
[1737081704185,4.6911,213.2,213.19,7.40005296]
[1737081705190,5.04,213.22,213.04,3.1001]
[1737081705494,5.04,213.21,213.17,7.40005296]
[1737081705694,5.04,213.22,213.17,7.40005296]
[1737081706194,5.04,213.22,213.19,7.40005296]
[1737081706698,5.04,213.25,213.21,7.40005296]
[1737081706897,4.6903,213.24,213.21,7.40005296]
[1737081707096,4.6903,213.24,213.23,7.40005296]
[1737081710095,5.04,213.27,213.15,4.692]
[1737081710294,4.6906,213.23,213.15,4.692]
[1737081710495,4.6906,213.23,213.22,7.40005296]
[1737081716202,4.6906,213.23,213.15,4.6921]
[1737081716203,5.04,213.27,213.05,1.5812]
[1737081716401,4.691,213.21,213.2,7.40005296]
[1737081717098,4.6913,213.19,213.18,7.40005296]
[1737081720607,5.04,213.27,213.05,1.5812]
[1737081720907,7.40005296,213.18,213.05,3.1493]
[1737081721106,5.58,213.18,213.12,7.40005296]
[1737081721300,5.58,213.18,213.05,3.1493]
[1737081721496,5.58,213.18,213.12,7.40005296]
[1737081721701,4.6922,213.15,213.14,7.40005296]
[1737081721902,5.68,213.23,213.14,7.40005296]
[1737081722100,5.68,213.23,213.17,7.40005296]
[1737081722303,5.68,213.23,213.19,7.40005296]
[1737081722802,5.68,213.23,213.17,7.40005296]
[1737081722998,4.6915,213.18,213.17,7.40005296]
[1737081723200,5.68,213.23,213.17,7.40005296]
[1737081723401,4.6908,213.22,213.17,7.40005296]
[1737081723604,5.68,213.23,213.17,7.40005296]
[1737081723998,5.68,213.23,213.1,4.6931]
[1737081724204,5.68,213.23,213.15,7.40005296]
[1737081724506,7.40005296,213.22,213.13,7.40005296]
[1737081724702,4.6923,213.15,213.13,7.40005296]
[1737081727005,4.6926,213.14,213.11,7.40005296]
[1737081727206,7.40005296,213.19,213.11,7.40005296]
[1737081727607,4.6927,213.13,213.11,7.40005296]
[1737081727806,38.0,213.18,212.87,51.09465024]
[1737081728006,14.07,213.16,212.97,7.40005296]
[1737081728201,5.74,213.17,213.03,7.40005296]
[1737081728403,5.74,213.16,213.03,7.40005296]
[1737081728605,5.74,213.16,213.05,7.40005296]
[1737081728805,128.97968538,213.18,213.07,7.40005296]
[1737081728999,5.74,213.17,213.07,7.40005296]
[1737081729409,7.40005296,213.16,213.07,7.40005296]
[1737081729610,4.6928,213.13,213.07,7.40005296]
[1737081729809,7.40005296,213.16,213.04,4.4645]
[1737081730005,7.40005296,213.16,213.06,7.40005296]
[1737081730205,7.40005296,213.07,212.86,26.09268873]
[1737081730406,7.40005296,213.07,212.98,7.40005296]
[1737081730808,4.6945,213.05,212.98,7.40005296]
[1737081731008,5.74,213.08,212.97,1.4367]
[1737081731202,5.74,213.08,212.99,7.40005296]
[1737081731898,5.74,213.08,213.01,7.40005296]
[1737081732099,4.694,213.07,213.03,7.40005296]
[1737081733002,4.694,213.07,212.97,6.1328]
[1737081733207,4.6945,213.05,213.02,7.40005296]
[1737081735709,4.6945,213.05,213.04,7.40005296]
[1737081735906,4.6945,213.05,213.02,7.40005296]
[1737081736606,4.6945,213.05,213.04,7.40005296]
[1737081737111,5.74,213.08,213.04,7.40005296]
[1737081737309,4.6941,213.07,212.97,1.4367]
[1737081737509,5.68,213.14,212.97,1.4367]
[1737081737713,7.40005296,213.15,213.01,4.6952]
[1737081737912,4.6936,213.09,213.08,7.40005296]
[1737081738212,7.40005296,213.13,212.97,6.1327]
[1737081738414,7.40005296,213.13,213.05,7.40005296]
[1737081738613,7.40005296,213.11,213.05,7.40005296]
[1737081738910,4.6944,213.06,213.05,7.40005296]
[1737081739105,7.40005296,213.11,213.02,7.40005296]
[1737081739309,4.6947,213.04,213.02,7.40005296]
[1737081741511,4.6935,213.1,213.03,4.6948]
[1737081741817,7.40005296,213.16,213.08,7.40005296]
[1737081742113,4.6936,213.09,213.04,1.495]
[1737081742317,4.6936,213.09,213.07,7.40005296]
[1737081744320,4.6937,213.08,213.07,7.40005296]
[1737081746920,7.40005296,213.12,212.97,1.4367]
[1737081747120,4.6947,213.04,213.03,7.40005296]
[1737081749818,4.694,213.07,213.03,7.40005296]
[1737081750023,5.66,213.14,213.06,7.40005296]
[1737081750222,5.66,213.14,213.08,7.40005296]
[1737081751625,5.58,213.13,213.08,7.40005296]
[1737081752215,4.6935,213.09,213.08,7.40005296]
[1737081756024,0.24347,213.18,213.08,7.40005296]
[1737081756325,4.6922,213.15,213.14,7.40005296]
[1737081756618,0.24347,213.18,213.14,7.40005296]
[1737081756819,0.24347,213.18,213.16,7.40005296]
[1737081757821,4.692,213.17,213.16,7.40005296]
[1737081758327,4.93507,213.18,213.16,7.40005296]
[1737081758624,0.24347,213.18,213.16,7.40005296]
[1737081759519,0.24347,213.18,213.1,3.0202]
[1737081759717,0.24347,213.18,213.14,7.40005296]
[1737081761226,4.6922,213.15,213.14,7.40005296]
[1737081762421,4.6922,213.15,213.1,3.0202]
[1737081762422,7.40005296,213.2,213.12,7.40005296]
[1737081762619,7.40005296,213.2,213.14,7.40005296]
[1737081764125,4.6924,213.15,213.14,7.40005296]
[1737081766129,4.6924,213.15,213.1,3.0202]
[1737081766427,4.6924,213.15,213.13,7.40005296]
[1737081768322,4.6917,213.18,213.13,7.40005296]
[1737081768522,5.46,213.21,213.17,7.40005296]
[1737081768728,4.692,213.16,213.13,7.40005296]
[1737081768926,7.40005296,213.2,213.13,7.40005296]
[1737081770038,4.6924,213.14,213.13,7.40005296]
[1737081773733,5.46,213.21,213.13,7.40005296]
[1737081773932,5.46,213.21,213.15,7.40005296]
[1737081774131,4.692,213.16,213.15,7.40005296]
[1737081775333,4.6914,213.19,213.15,7.40005296]
[1737081775533,5.42,213.23,213.19,7.40005296]
[1737081776530,12.82005296,213.23,213.15,7.40005296]
[1737081776731,7.40005296,213.21,213.15,7.40005296]
[1737081777831,4.6922,213.15,213.13,7.40005296]
[1737081778031,7.40005296,213.19,213.11,7.40005296]
[1737081778232,7.40005296,213.17,213.1,3.0202]
[1737081778533,7.40005296,213.17,213.1,10.42025296]
[1737081778936,4.6928,213.13,213.1,10.42025296]
[1737081779131,7.40005296,213.19,213.12,7.40005296]
[1737081779331,4.6924,213.15,213.1,3.0202]
[1737081779531,7.40005296,213.19,213.12,7.40005296]
[1737081780440,4.6918,213.17,213.12,7.40005296]
[1737081780639,7.40005296,213.19,213.12,7.40005296]
[1737081781441,4.6924,213.15,213.12,7.40005296]
[1737081781640,7.40005296,213.21,213.14,7.40005296]
[1737081782242,12.78005296,213.21,213.14,7.40005296]
[1737081782433,7.40005296,213.19,213.11,7.40005296]
[1737081785940,7.40005296,213.17,213.1,1.5307]
[1737081786542,4.6922,213.15,213.1,1.5307]
[1737081786742,7.40005296,213.17,213.11,7.40005296]
[1737081787146,4.6928,213.12,213.11,7.40005296]
[1737081793952,321.32747911,213.21,213.11,7.40005296]
[1737081794256,4.6924,213.14,213.13,7.40005296]
[1737081795054,4.6929,213.12,213.11,7.40005296]
[1737081796458,4.6929,213.12,213.1,1.5307]
[1737081799760,7.40005296,213.17,213.11,7.40005296]
[1737081800160,4.6928,213.12,213.11,7.40005296]
[1737081802566,4.6931,213.11,213.1,1.5307]
[1737081803967,12.98935774,213.16,213.1,1.5307]
[1737081803968,4.6928,213.13,213.1,1.5307]
[1737081804169,128.97968538,213.18,213.11,7.40005296]
[1737081804371,12.99455506,213.17,213.11,7.40005296]
[1737081804569,12.99455506,213.18,213.11,7.40005296]
[1737081804868,4.693,213.12,213.1,1.5307]
[1737081805063,7.40005296,213.13,213.0,1.4901]
[1737081805271,7.40005296,213.11,213.02,7.40005296]
[1737081805770,7.40005296,213.11,213.04,7.40005296]
[1737081806462,4.6944,213.06,213.04,7.40005296]
[1737081806666,7.40005296,213.11,213.04,7.40005296]
[1737081806963,7.40005296,213.11,213.01,1.5183]
[1737081806964,4.6947,213.04,213.01,1.5183]
[1737081807164,7.40005296,213.09,213.01,1.5183]
[1737081807362,7.40005296,213.07,213.01,1.5183]
[1737081807865,7.40005296,213.09,213.02,7.40005296]
[1737081809165,4.6942,213.06,213.02,7.40005296]
[1737081809364,4.6942,213.06,213.04,7.40005296]
[1737081810672,4.694,213.07,213.04,7.40005296]
[1737081811569,4.694,213.07,213.06,7.40005296]
[1737081813170,4.6937,213.08,213.06,7.40005296]
[1737081813473,12.62005296,213.15,213.08,7.40005296]
[1737081815271,4.6931,213.11,213.08,7.40005296]
[1737081816373,4.6933,213.1,213.08,7.40005296]
[1737081817575,4.6935,213.09,213.08,7.40005296]
[1737081818975,4.6931,213.12,213.08,7.40005296]
[1737081819268,4.6931,213.12,213.11,7.40005296]
[1737081820868,7.64462296,213.18,213.11,7.40005296]
[1737081821466,4.6926,213.13,213.11,7.40005296]
[1737081822274,7.64462296,213.18,213.11,7.40005296]
[1737081822473,0.24457,213.18,213.13,7.40005296]
[1737081823574,4.6919,213.17,213.13,7.40005296]
[1737081823768,0.24457,213.18,213.13,7.40005296]
[1737081824574,4.6923,213.15,213.13,7.40005296]
[1737081825576,4.6919,213.17,213.13,7.40005296]
[1737081826577,4.6914,213.19,213.15,7.40005296]
[1737081826777,3.92413484,213.22,213.15,7.40005296]
[1737081827872,7.40005296,213.17,213.01,1.5798]
[1737081828073,7.40005296,213.15,213.08,7.40005296]
[1737081829171,4.6927,213.13,213.08,7.40005296]
[1737081829366,7.40005296,213.15,213.08,7.40005296]
[1737081829767,4.6935,213.1,213.08,7.40005296]
[1737081832879,4.6935,213.09,213.08,7.40005296]
[1737081836481,12.58005296,213.15,213.06,7.40005296]
[1737081836778,7.40005296,213.1,213.02,1.4383]
[1737081836982,7.40005296,213.08,213.01,7.40005296]
[1737081837382,4.6951,213.03,213.01,7.40005296]
[1737081840082,7.40005296,213.06,212.99,7.0]
[1737081840281,7.40005296,213.06,212.99,14.40005296]
[1737081840483,7.40005296,213.06,212.99,7.0]
[1737081840785,4.6955,213.0,212.99,7.0]
[1737081840985,12.09555296,213.0,212.99,7.0]
[1737081841175,7.40005296,213.0,212.9,1.4384]
[1737081841481,4.6971,212.93,212.91,7.40005296]
[1737081842177,2.5765,213.05,212.91,7.40005296]
[1737081842178,7.40005296,213.0,212.91,7.40005296]
[1737081842379,7.40005296,213.0,212.93,7.40005296]
[1737081843776,7.40005296,213.01,212.93,7.40005296]
[1737081843976,7.40005296,213.02,212.95,7.40005296]
[1737081844581,12.56005296,213.02,212.95,7.40005296]
[1737081845184,4.6958,212.99,212.95,7.40005296]
[1737081845380,12.56005296,213.02,212.95,7.40005296]
[1737081845878,5.16,213.03,212.97,7.40005296]
[1737081846482,5.16,213.03,212.9,1.4384]
[1737081846682,5.16,213.03,212.96,7.40005296]
[1737081846878,0.25781,213.04,212.96,7.40005296]
[1737081847083,4.6951,213.02,213.0,7.40005296]
[1737081847282,0.25781,213.04,213.0,7.40005296]
[1737081847484,4.95251,213.04,213.0,7.40005296]
[1737081847783,0.25781,213.04,212.9,1.4384]
[1737081847990,4.6957,213.0,212.97,7.40005296]
[1737081848786,7.65786296,213.04,212.97,7.40005296]
[1737081848988,4.6957,212.99,212.97,7.40005296]
[1737081849892,7.65786296,213.04,212.88,1.5474]
[1737081849893,7.40005296,213.0,212.88,1.5474]
[1737081850088,7.40005296,213.0,212.93,7.40005296]
[1737081850792,4.6965,212.96,212.93,7.40005296]
[1737081851294,7.40005296,213.0,212.93,7.40005296]
[1737081851593,4.6967,212.95,212.93,7.40005296]
[1737081859091,4.6968,212.94,212.89,3.0823]
[1737081859296,4.6968,212.94,212.91,7.40005296]
[1737081860992,7.40005296,212.98,212.91,7.40005296]
[1737081861394,4.697,212.94,212.91,7.40005296]
[1737081861596,4.697,212.94,212.93,7.40005296]
[1737081863195,4.6961,212.98,212.93,7.40005296]
[1737081863401,7.40005296,212.99,212.93,7.40005296]
[1737081863895,4.6964,212.96,212.93,7.40005296]
[1737081867906,4.6961,212.98,212.93,12.09705296]
[1737081868105,7.40005296,213.01,212.93,12.09705296]
[1737081868296,1.5682,213.03,212.89,3.0909]
[1737081868297,7.40005296,213.02,212.95,7.40005296]
[1737081868503,4.6959,212.99,212.95,7.40005296]
[1737081869506,4.696,212.98,212.95,7.40005296]
[1737081871209,4.696,212.98,212.93,4.697]
[1737081871411,4.696,212.98,212.95,7.40005296]
[1737081872112,4.696,212.98,212.93,12.09705296]
[1737081872513,4.6968,212.94,212.91,7.40005296]
[1737081873605,4.6968,212.94,212.9,4.6977]
[1737081873914,4.6971,212.93,212.9,7.40005296]
[1737081874521,4.6971,212.93,212.89,7.7888]
[1737081874814,4.6971,212.93,212.89,15.18885296]
[1737081875916,129.23749538,213.04,212.92,7.40005296]
[1737081876113,129.23749538,213.04,213.02,7.40005296]
[1737081877017,4.6948,213.03,213.0,7.40005296]
[1737081877317,0.25781,213.04,212.98,7.40005296]
[1737081878116,4.6953,213.01,212.98,7.40005296]
[1737081878618,0.25781,213.04,212.98,7.40005296]
[1737081878920,4.6951,213.02,212.98,7.40005296]
[1737081880720,4.6951,213.02,213.0,7.40005296]
[1737081882113,0.25781,213.04,213.0,7.40005296]
[1737081882419,0.25781,213.04,213.03,7.40005296]
[1737081883622,0.25781,213.04,213.03,12.09485296]
[1737081884011,0.25781,213.04,213.03,7.40005296]
[1737081887925,0.25781,213.04,213.03,12.09485296]
[1737081891635,4.6935,213.09,213.04,4.6946]
[1737081891835,4.6935,213.09,213.07,7.40005296]
[1737081892233,5.1,213.12,213.07,7.40005296]
[1737081893435,1.5167,213.13,213.07,7.40005296]
[1737081894239,4.6937,213.09,213.07,7.40005296]
[1737081899640,4.6937,213.09,213.05,7.40005296]
[1737081900135,7.40005296,213.12,213.05,7.40005296]
[1737081900734,7.40005296,213.08,213.0,7.40005296]
[1737081900936,7.40005296,213.06,213.0,7.40005296]
[1737081902238,7.40005296,213.04,212.96,8.86835296]
[1737081902938,4.696,212.98,212.96,8.86835296]
[1737081903743,4.696,212.98,212.96,1.4683]
[1737081904145,4.696,212.98,212.95,7.40005296]
[1737081904334,4.6964,212.97,212.95,7.40005296]
[1737081906747,4.6971,212.93,212.88,4.6981]
[1737081907046,4.6971,212.93,212.9,7.40005296]
[1737081907241,7.40005296,212.98,212.9,7.40005296]
[1737081908546,4.6965,212.96,212.9,7.40005296]
[1737081908743,7.40005296,212.98,212.9,7.40005296]
[1737081909751,4.697,212.94,212.9,7.40005296]
[1737081911846,4.697,212.94,212.88,4.6981]
[1737081912047,4.6976,212.91,212.88,7.40005296]
[1737081912248,12.46005296,212.96,212.88,7.40005296]
[1737081912447,12.46005296,212.96,212.86,7.40005296]
[1737081912448,7.40005296,212.94,212.86,7.40005296]
[1737081913047,7.40005296,212.94,212.88,7.40005296]
[1737081914451,4.6975,212.91,212.88,7.40005296]
[1737081915653,7.40005296,212.94,212.87,7.40005296]
[1737081915950,4.6981,212.88,212.86,7.40005296]
[1737081917657,4.6981,212.88,212.83,4.6992]
[1737081917858,7.40005296,212.9,212.84,7.40005296]
[1737081918155,7.40005296,212.9,212.79,2.9844]
[1737081918156,7.40005296,212.88,212.79,1.4364]
[1737081918355,7.40005296,212.88,212.8,7.40005296]
[1737081918555,7.40005296,212.88,212.79,1.4364]
[1737081918755,7.40005296,212.88,212.81,7.40005296]
[1737081918955,7.40005296,212.9,212.83,7.40005296]
[1737081920357,7.40005296,212.88,212.83,7.40005296]
[1737081920559,1.5512,212.94,212.83,7.40005296]
[1737081920763,7.40005296,212.88,212.83,7.40005296]
[1737081920960,4.699,212.84,212.81,7.40005296]
[1737081921562,4.699,212.84,212.79,1.4364]
[1737081921761,7.40005296,212.86,212.8,7.40005296]
[1737081921959,4.6993,212.83,212.8,7.40005296]
[1737081922557,4.6995,212.82,212.8,7.40005296]
[1737081922762,7.40005296,212.84,212.79,1.4364]
[1737081922962,7.40005296,212.84,212.78,7.40005296]
[1737081923463,4.6998,212.81,212.78,7.40005296]
[1737081926065,7.40005296,212.86,212.8,7.40005296]
[1737081926965,4.6997,212.81,212.8,7.40005296]
[1737081927169,4.6997,212.81,212.78,7.40005296]
[1737081927363,7.40005296,212.8,212.76,4.7008]
[1737081927562,7.40005296,212.8,212.73,7.40005296]
[1737081927563,4.7003,212.78,212.73,12.10135296]
[1737081927766,12.10035296,212.78,212.73,4.7013]
[1737081927966,12.10035296,212.78,212.71,7.40005296]
[1737081928770,7.40005296,212.8,212.73,7.40005296]
[1737081929572,12.09995296,212.8,212.75,4.701]
[1737081930067,7.40005296,212.76,212.72,4.7015]
[1737081930270,7.40005296,212.76,212.69,2.9953]
[1737081930569,7.40005296,212.74,212.69,2.9953]
[1737081930769,7.40005296,212.74,212.71,4.7017]
[1737081931070,7.40005296,212.74,212.69,1.5138]
[1737081931665,4.7008,212.77,212.7,7.40005296]
[1737081931867,7.40005296,212.77,212.7,8.94545296]
[1737081932362,7.40005296,212.77,212.72,4.7016]
[1737081932767,7.40005296,212.79,212.74,4.7011]
[1737081934170,12.10015296,212.79,212.74,4.7011]
[1737081938672,4.7004,212.78,212.74,4.7011]
[1737081939079,7.40005296,212.79,212.74,4.7011]
[1737081939278,4.7004,212.78,212.74,4.7011]
[1737081940075,12.10015296,212.79,212.74,4.7011]
[1737081940973,12.10015296,212.79,212.75,4.701]
[1737081941382,7.40005296,212.76,212.74,4.701]
[1737081941670,7.40005296,212.76,212.7,3.0698]
[1737081942175,7.40005296,212.76,212.72,4.7015]
[1737081942573,4.7006,212.77,212.72,4.7015]
[1737081944278,12.10035296,212.78,212.73,4.7014]
[1737081948175,5.06,212.84,212.7,1.5454]
[1737081948176,4.701,212.75,212.7,1.5454]
[1737081949078,4.701,212.75,212.7,6.2475]
[1737081949283,4.7017,212.72,212.62,1.5547]
[1737081949478,12.10175296,212.72,212.63,1.4991]
[1737081949674,12.10175296,212.72,212.65,7.40005296]
[1737081950084,12.10175296,212.72,212.66,4.7028]
[1737081950489,12.10145296,212.74,212.67,7.40005296]
[1737081950781,5.06,212.75,212.71,7.40005296]
[1737081951178,5.06,212.75,212.72,4.7017]
[1737081951682,5.06,212.75,212.71,7.40005296]
[1737081952985,9.761,212.75,212.69,12.10235296]
[1737081953583,4.701,212.75,212.7,4.702]
[1737081953783,12.10085296,212.76,212.7,4.702]
[1737081953983,7.40005296,212.76,212.7,4.702]
[1737081954986,7.40005296,212.76,212.63,1.4991]
[1737081955184,12.10135296,212.74,212.68,12.10235296]
[1737081955484,7.40005296,212.74,212.68,12.10235296]
[1737081956186,4.7015,212.73,212.68,12.10235296]
[1737081957186,4.7012,212.74,212.7,12.10215296]
[1737081957986,4.7012,212.74,212.7,7.40005296]
[1737081959187,4.7015,212.73,212.69,4.7023]
[1737081959389,1.5231,212.79,212.72,7.40005296]
[1737081959683,6.2232,212.79,212.78,7.40005296]
[1737081959886,1.5231,212.79,212.77,7.40005296]
[1737081960782,4.7015,212.73,212.68,4.7025]
[1737081960984,4.7015,212.73,212.72,7.40005296]
[1737081962387,4.7012,212.75,212.72,7.40005296]
[1737081962590,1.5817,212.78,212.74,7.40005296]
[1737081962787,6.282,212.78,212.77,7.40005296]
[1737081963688,4.7003,212.78,212.77,7.40005296]
[1737081964084,1.5287,212.84,212.77,7.40005296]
[1737081964286,1.5287,212.84,212.83,7.40005296]
[1737081964691,6.2277,212.84,212.83,5.296e-05]
[1737081965079,1.5287,212.84,212.8,7.40005296]
[1737081965286,4.6997,212.81,212.8,7.40005296]
[1737081971296,21.87578838,212.84,212.78,7.40005296]
[1737081971486,5.55738149,212.83,212.78,7.40005296]
[1737081971690,4.7001,212.79,212.78,7.40005296]
[1737081971890,7.40005296,212.82,212.63,1.4991]
[1737081972092,7.40005296,212.82,212.75,7.40005296]
[1737081972294,4.7012,212.75,212.68,4.7024]
[1737081972500,7.40005296,212.82,212.63,1.4991]
[1737081972501,149.32677376,212.82,212.63,1.4991]
[1737081972697,12.94703542,212.81,212.74,7.40005296]
[1737081973294,4.7015,212.73,212.72,7.40005296]
[1737081973500,12.46005296,212.77,212.7,7.40005296]
[1737081973798,5.06,212.77,212.72,7.40005296]
[1737081974199,12.46005296,212.77,212.63,1.4991]
[1737081974395,12.46005296,212.77,212.7,7.40005296]
[1737081974598,5.06,212.77,212.7,7.40005296]
[1737081975797,5.06,212.77,212.72,7.40005296]
[1737081976398,4.702,212.71,212.65,4.7032]
[1737081976602,4.702,212.71,212.7,7.40005296]
[1737081976895,4.702,212.71,212.65,4.7032]
[1737081976896,7.40005296,212.76,212.63,1.4991]